{"text_format":"1","workbook":"xlsx","n_sheets":13,"sheets":["reeks1","reeks2","reeks3","reeks4","reeks5","reeks6","KREEKS1","KREEKS2","KREEKS3 ","KREEKS4","KREEKS5 ","KREEKS6","modaliteiten"],"not_rendered":{"charts":0,"images":0,"macros":0,"external_links":1,"defined_names":1,"comments":0,"pivot_tables":0},"unopened":[],"bounds":{"document_bytes":16777216,"sheet_cells":100000,"rows_first":2000,"rows_last":500,"rows_between":2000,"halvings":0,"cell_chars":16384,"cell_head_chars":4096},"cells_cut":0,"cells_raw":0,"read":"whole","date_system":"1900"}

{"sheet":"reeks1","index":0,"n_rows":31,"n_cols":28,"rows_kept":31,"cut":false,"hidden":false,"merged":[]}
[]
[null,"SPELERS",1,null,2,null,3,null,4,null,5,null,6,null,7,null,8,null,9,null,10,null,11,null,null,null,"part","ptn"]
[null,null,"W","Z","W","Z","W","Z","W","Z","W","Z","W","Z","W","Z","W","Z","W","Z","W","Z","W","Z"]
[1,"Dardha B.",null,null,1,1,2,3,1,2,3,3,2,2,3,2,1,1,1,2,2,null,2,3,null,null,{"$f":"COUNT(C4:Z4)","v":19},{"$f":"SUM(C4:Z4)","v":37}]
[2,"Dardha D.",3,3,null,null,3,3,3,1,3,3,3,2,3,3,1,3,3,3,2,null,3,3,null,null,19,51]
[3,"Ismailaj",1,2,1,1,null,null,1,1,3,2,1,2,3,3,1,1,2,3,null,2,2,2,null,null,19,34]
[4,"Knors",2,3,3,1,3,3,null,null,3,3,3,3,3,3,1,2,3,3,null,3,1,3,null,null,19,49]
[5,"Meulenbergs",1,1,1,1,2,1,1,1,null,null,1,1,3,3,1,1,2,2,null,1,2,2,null,null,19,28]
[6,"Michiels",2,2,2,1,2,3,1,1,3,3,null,null,3,1,2,1,2,2,3,null,3,2,null,null,19,39]
[7,"Robbé",2,1,1,1,1,1,1,1,1,1,3,1,null,null,1,2,2,3,1,null,3,2,null,null,19,29]
[8,"Schuermans",3,3,1,3,3,3,2,3,3,3,3,2,2,3,null,null,3,3,null,1,3,3,null,null,19,50]
[9,"Stryckers",2,3,1,1,1,2,1,1,2,2,2,2,1,2,1,1,null,null,null,1,3,1,null,null,19,30]
[10,"Talon",null,2,null,2,2,null,1,null,3,null,null,1,null,3,3,null,3,null,null,null,null,3,null,null,10,23]
[11,"Verachtert",1,2,1,1,2,2,1,3,2,2,2,1,2,1,1,1,3,1,1,null,null,null,null,null,19,30]
[]
[]
[null,"REEKS 1",null,"aantal",null,null,"punten"]
[1,"Dardha D.",null,null,{"$f":"$AA$5","v":19},null,{"$f":"$AB$5","v":51}]
[2,"Schuermans",null,null,{"$f":"$AA$11","v":19},null,{"$f":"$AB$11","v":50}]
[3,"Knors",null,null,{"$f":"$AA$7","v":19},null,{"$f":"$AB$7","v":49}]
[4,"Michiels",null,null,{"$f":"$AA$9","v":19},null,{"$f":"$AB$9","v":39}]
[5,"Dardha B.",null,null,{"$f":"$AA$4","v":19},null,{"$f":"$AB$4","v":37}]
[6,"Ismailaj",null,null,{"$f":"$AA$6","v":19},null,{"$f":"$AB$6","v":34}]
[7,"Verachtert",null,null,{"$f":"$AA$14","v":19},null,{"$f":"$AB$14","v":30}]
[8,"Stryckers",null,null,{"$f":"$AA$12","v":19},null,{"$f":"$AB$12","v":30}]
[9,"Robbé",null,null,{"$f":"$AA$10","v":19},null,{"$f":"$AB$10","v":29}]
[10,"Meulenbergs",null,null,{"$f":"$AA$8","v":19},null,{"$f":"$AB$8","v":28}]
[11,"Talon",null,null,{"$f":"$AA$13","v":10},null,{"$f":"$AB$13","v":23}]
[]
[]
[{"$f":"SUM(E18:E29)","v":200},"aantal partijen"]

{"sheet":"reeks2","index":1,"n_rows":31,"n_cols":28,"rows_kept":31,"cut":false,"hidden":false,"merged":[]}
[]
[null,"SPELERS",1,null,2,null,3,null,4,null,5,null,6,null,7,null,8,null,9,null,10,null,11,null,12,null,"part","ptn"]
[null,null,"W","Z","W","Z","W","Z","W","Z","W","Z","W","Z","W","Z","W","Z","W","Z","W","Z","W","Z","W","Z"]
[1,"Berghs",null,null,3,3,1,2,3,2,1,1,3,2,2,1,1,2,3,3,1,1,1,3,3,3,{"$f":"COUNT(C4:Z4)","v":22},{"$f":"SUM(C4:Z4)","v":45}]
[2,"Cop",1,1,null,null,2,2,3,2,2,3,2,3,1,2,1,3,3,3,2,2,2,2,3,1,22,46]
[3,"Crauwels",2,3,2,2,null,null,1,1,1,1,2,1,3,1,2,1,2,2,1,1,2,3,3,3,22,40]
[4,"De Cock S.",2,1,2,1,3,3,null,null,2,2,3,2,1,1,2,1,3,2,1,3,2,2,3,2,22,44]
[5,"Delvaux",3,3,1,2,3,3,2,2,null,null,3,3,3,2,2,2,2,1,2,2,2,2,2,1,22,48]
[6,"Embrechts",2,1,1,2,3,2,2,1,1,1,null,null,3,3,1,1,2,3,2,1,1,3,1,3,22,40]
[7,"Geylen",3,2,2,3,3,1,3,3,2,1,1,1,null,null,1,1,3,2,1,2,2,1,3,1,22,42]
[8,"Goddé M.",2,3,1,3,3,2,3,2,2,2,3,3,3,3,null,null,3,3,3,2,3,3,3,3,22,58]
[9,"Roegiers",1,1,1,1,2,2,2,1,3,2,1,2,2,1,1,1,null,null,1,1,2,1,1,3,22,33]
[10,"Serruys",3,3,2,2,3,3,1,3,2,2,3,2,2,3,2,1,3,3,null,null,2,3,3,1,22,52]
[11,"Van Dingenen",1,3,2,2,1,2,2,2,2,2,1,3,3,2,1,1,3,2,1,2,null,null,1,1,22,40]
[12,"Verbert",1,1,3,1,1,1,2,1,3,2,1,3,3,1,1,1,1,3,3,1,3,3,null,null,22,40]
[]
[null,"REEKS 2",null,"aantal",null,null,"punten"]
[1,"Goddé M.",null,null,{"$f":"$AA$11","v":22},null,{"$f":"$AB$11","v":58}]
[2,"Serruys",null,null,{"$f":"$AA$13","v":22},null,{"$f":"$AB$13","v":52}]
[3,"Delvaux",null,null,{"$f":"$AA$8","v":22},null,{"$f":"$AB$8","v":48}]
[4,"Cop",null,null,{"$f":"$AA$5","v":22},null,{"$f":"$AB$5","v":46}]
[5,"Berghs",null,null,{"$f":"$AA$4","v":22},null,{"$f":"$AB$4","v":45}]
[6,"De Cock S.",null,null,{"$f":"$AA$7","v":22},null,{"$f":"$AB$7","v":44}]
[7,"Geylen",null,null,{"$f":"$AA$10","v":22},null,{"$f":"$AB$10","v":42}]
[8,"Crauwels",null,null,{"$f":"$AA$15","v":22},null,{"$f":"$AB$15","v":40}]
[9,"Embrechts",null,null,{"$f":"$AA$6","v":22},null,{"$f":"$AB$6","v":40}]
[10,"Verbert",null,null,{"$f":"$AA$14","v":22},null,{"$f":"$AB$14","v":40}]
[11,"Van Dingenen",null,null,{"$f":"$AA$9","v":22},null,{"$f":"$AB$9","v":40}]
[12,"Roegiers",null,null,{"$f":"$AA$12","v":22},null,{"$f":"$AB$12","v":33}]
[]
[{"$f":"SUM(E18:E29)","v":264},"aantal partijen"]

{"sheet":"reeks3","index":2,"n_rows":31,"n_cols":28,"rows_kept":31,"cut":false,"hidden":false,"merged":[]}
[]
[null,"SPELERS",1,null,2,null,3,null,4,null,5,null,6,null,7,null,8,null,9,null,10,null,11,null,12,null,"part","ptn"]
[null,null,"W","Z","W","Z","W","Z","W","Z","W","Z","W","Z","W","Z","W","Z","W","Z","W","Z","W","Z","W","Z"]
[1,"Adriaense",null,null,1,2,2,1,3,2,3,2,1,1,1,2,null,1,3,2,3,2,2,2,3,1,{"$f":"COUNT(C4:Z4)","v":21},{"$f":"SUM(C4:Z4)","v":40}]
[2,"Bruynseels",2,3,null,null,3,1,1,2,2,2,3,3,3,1,3,null,3,1,1,3,1,3,3,1,21,45]
[3,"Geerts H",3,2,3,1,null,null,2,2,2,3,1,3,1,2,3,null,2,2,3,2,1,1,3,3,21,45]
[4,"Kuti",2,1,2,3,2,2,null,null,3,3,3,1,1,1,1,null,3,3,3,1,3,1,1,3,21,43]
[5,"Lemmens",2,1,2,2,1,2,1,1,null,null,1,1,1,1,null,1,2,1,2,1,1,1,2,1,21,28]
[6,"Mathé",3,3,1,1,1,3,3,1,3,3,null,null,1,1,null,2,1,1,3,3,1,2,2,3,21,42]
[7,"Michielsen K.",2,3,3,1,2,3,3,3,3,3,3,3,null,null,3,null,3,3,3,2,3,1,3,3,21,56]
[8,"Renty",3,null,null,1,null,1,null,3,3,null,2,null,null,1,null,null,2,null,null,3,null,1,1,null,11,21]
[9,"Roofthoofd",2,1,3,1,2,2,1,1,3,2,3,3,1,1,null,2,null,null,2,2,3,2,2,2,21,41]
[10,"Van der Steen",2,1,1,3,2,1,3,1,3,2,1,1,2,1,1,null,2,2,null,null,3,1,1,2,21,36]
[11,"Van Laer",2,2,1,3,3,3,3,1,3,3,2,3,3,1,3,null,2,1,3,1,null,null,3,3,21,49]
[12,"Vermaere",3,1,3,1,1,1,1,3,3,2,1,2,1,1,null,3,2,2,2,3,1,1,null,null,21,38]
[]
[null,"REEKS 3",null,"aantal",null,null,"punten"]
[1,"Michielsen K.",null,null,{"$f":"$AA$10","v":21},null,{"$f":"$AB$10","v":56}]
[2,"Van Laer",null,null,{"$f":"$AA$14","v":21},null,{"$f":"$AB$14","v":49}]
[3,"Bruynseels",null,null,{"$f":"$AA$5","v":21},null,{"$f":"$AB$5","v":45}]
[4,"Geerts H",null,null,{"$f":"$AA$6","v":21},null,{"$f":"$AB$6","v":45}]
[5,"Kuti",null,null,{"$f":"$AA$7","v":21},null,{"$f":"$AB$7","v":43}]
[6,"Mathé",null,null,{"$f":"$AA$9","v":21},null,{"$f":"$AB$9","v":42}]
[7,"Roofthoofd",null,null,{"$f":"$AA$12","v":21},null,{"$f":"$AB$12","v":41}]
[8,"Adriaense",null,null,{"$f":"$AA$4","v":21},null,{"$f":"$AB$4","v":40}]
[9,"Vermaere",null,null,{"$f":"$AA$15","v":21},null,{"$f":"$AB$15","v":38}]
[10,"Van der Steen",null,null,{"$f":"$AA$13","v":21},null,{"$f":"$AB$13","v":36}]
[11,"Lemmens",null,null,{"$f":"$AA$8","v":21},null,{"$f":"$AB$8","v":28}]
[12,"Renty",null,null,{"$f":"$AA$11","v":11},null,{"$f":"$AB$11","v":21}]
[]
[{"$f":"SUM(E18:E29)","v":242},"aantal partijen"]

{"sheet":"reeks4","index":3,"n_rows":31,"n_cols":28,"rows_kept":31,"cut":false,"hidden":false,"merged":[]}
[]
[null,"SPELERS",1,null,2,null,3,null,4,null,5,null,6,null,7,null,8,null,9,null,10,null,11,null,null,null,"part","ptn"]
[null,null,"W","Z","W","Z","W","Z","W","Z","W","Z","W","Z","W","Z","W","Z","W","Z","W","Z","W","Z"]
[1,"Backskai",null,null,3,1,1,1,3,3,1,3,1,3,3,2,3,3,3,2,1,1,2,1,null,null,{"$f":"COUNT(C4:Z4)","v":20},{"$f":"SUM(C4:Z4)","v":41}]
[2,"Goddé P.",3,1,null,null,3,2,2,1,1,3,2,1,2,1,2,2,1,3,2,3,2,2,null,null,20,39]
[3,"Hellemans",3,3,2,1,null,null,1,1,3,1,3,3,2,2,2,1,2,1,1,1,1,1,null,null,20,35]
[4,"Hofman",1,1,3,2,3,3,null,null,2,1,1,3,2,1,2,1,3,3,1,1,2,1,null,null,20,37]
[5,"Keynen",1,3,1,3,3,1,3,2,null,null,3,1,1,3,3,1,3,3,1,1,3,1,null,null,20,41]
[6,"Mertens",1,3,3,2,1,1,1,3,3,1,null,null,2,1,1,1,1,3,1,2,1,1,null,null,20,33]
[7,"Michielsen L.",2,1,3,2,2,2,3,2,1,3,3,2,null,null,2,3,2,1,2,1,2,2,null,null,20,41]
[8,"Neefs",1,1,2,2,3,2,3,2,3,1,3,3,1,2,null,null,3,1,1,3,2,1,null,null,20,40]
[9,"Rabbachin",2,1,1,3,3,2,1,1,1,1,1,3,3,2,3,1,null,null,1,2,1,1,null,null,20,34]
[10,"Schrevens",3,3,1,2,3,3,3,3,3,3,2,3,3,2,1,3,2,3,null,null,3,3,null,null,20,52]
[11,"Wouters",3,2,2,2,3,3,3,2,3,1,3,3,2,2,3,2,3,3,1,1,null,null,null,null,20,47]
[]
[]
[null,"REEKS 4",null,"aantal",null,null,"punten"]
[1,"Schrevens",null,null,{"$f":"$AA$13","v":20},null,{"$f":"$AB$13","v":52}]
[2,"Wouters",null,null,{"$f":"$AA$14","v":20},null,{"$f":"$AB$14","v":47}]
[3,"Backskai",null,null,{"$f":"$AA$10","v":20},null,{"$f":"$AB$10","v":41}]
[4,"Keynen",null,null,{"$f":"$AA$4","v":20},null,{"$f":"$AB$4","v":41}]
[5,"Michielsen L.",null,null,{"$f":"$AA$8","v":20},null,{"$f":"$AB$8","v":41}]
[6,"Neefs",null,null,{"$f":"$AA$11","v":20},null,{"$f":"$AB$11","v":40}]
[7,"Goddé P.",null,null,{"$f":"$AA$5","v":20},null,{"$f":"$AB$5","v":39}]
[8,"Hofman",null,null,{"$f":"$AA$7","v":20},null,{"$f":"$AB$7","v":37}]
[9,"Hellemans",null,null,{"$f":"$AA$6","v":20},null,{"$f":"$AB$6","v":35}]
[10,"Rabbachin",null,null,{"$f":"$AA$12","v":20},null,{"$f":"$AB$12","v":34}]
[11,"Mertens",null,null,{"$f":"$AA$9","v":20},null,{"$f":"$AB$9","v":33}]
[]
[]
[{"$f":"SUM(E18:E29)","v":220},"aantal partijen"]

{"sheet":"reeks5","index":4,"n_rows":31,"n_cols":28,"rows_kept":31,"cut":false,"hidden":false,"merged":[]}
[]
[null,"REEKS 5",1,null,2,null,3,null,4,null,5,null,6,null,7,null,8,null,9,null,10,null,11,null,null,null,"part","ptn"]
[null,null,"W","Z","W","Z","W","Z","W","Z","W","Z","W","Z","W","Z","W","Z","W","Z","W","Z","W","Z"]
[1,"Barsegian",null,null,null,null,null,null,null,null,null,null,null,null,null,null,null,null,null,null,null,null,null,null,null,null,{"$f":"COUNT(C4:Z4)","v":0},{"$f":"SUM(C4:Z4)","v":0}]
[2,"Brants",null,null,null,null,1,2,null,null,1,null,2,3,1,2,3,2,3,1,1,3,1,3,null,null,{"$f":"COUNT(C5:Z5)","v":15},{"$f":"SUM(C5:Z5)","v":29}]
[3,"Daponte",null,null,2,3,null,null,null,null,null,3,1,3,2,2,1,3,3,1,1,1,2,3,null,null,15,31]
[4,"De Jonghe",null,null,null,null,null,null,null,null,null,null,null,null,null,null,null,null,null,null,null,null,null,null,null,null,0,0]
[5,"Douwen ",null,null,null,3,1,null,null,null,null,null,null,1,2,null,null,3,1,null,1,null,null,3,null,null,8,15]
[6,"Lemeire",null,null,1,2,1,3,null,null,3,null,null,null,1,1,3,1,3,1,3,3,2,3,null,null,15,31]
[7,"Meeus",null,null,2,3,2,2,null,null,null,2,3,3,null,null,3,1,3,1,3,3,3,2,null,null,15,36]
[8,"Meulemeester",null,null,2,1,1,3,null,null,1,null,3,1,3,1,null,null,1,3,1,1,1,3,null,null,15,26]
[9,"Pynaerts",null,null,3,1,3,1,null,null,null,3,3,1,3,1,1,3,null,null,1,3,2,2,null,null,15,31]
[10,"Van Dyck",null,null,1,3,3,3,null,null,null,3,1,1,1,1,3,3,1,3,null,null,2,1,null,null,15,30]
[11,"Vingerhoets",null,null,1,null,1,2,null,null,1,3,1,2,2,1,1,3,2,2,3,2,null,null,null,null,15,27]
[]
[]
[null,"REEKS 5",null,"aantal",null,null,"punten"]
[1,"Meeus",null,null,{"$f":"$AA$10","v":15},null,{"$f":"$AB$10","v":36}]
[2,"Pynaerts",null,null,{"$f":"$AA$6","v":15},null,{"$f":"$AB$6","v":31}]
[3,"Daponte",null,null,{"$f":"$AA$9","v":15},null,{"$f":"$AB$9","v":31}]
[4,"Lemeire",null,null,{"$f":"$AA$12","v":15},null,{"$f":"$AB$12","v":31}]
[5,"Van Dyck",null,null,{"$f":"$AA$13","v":15},null,{"$f":"$AB$13","v":30}]
[6,"Brants",null,null,{"$f":"$AA$5","v":15},null,{"$f":"$AB$5","v":29}]
[7,"Vingerhoets",null,null,{"$f":"$AA$14","v":15},null,{"$f":"$AB$14","v":27}]
[8,"Meulemeester",null,null,{"$f":"$AA$11","v":15},null,{"$f":"$AB$11","v":26}]
[9,"Douwen ",null,null,{"$f":"$AA$8","v":8},null,{"$f":"$AB$8","v":15}]
[10,"De Jonghe",null,null,{"$f":"$AA$7","v":0},null,{"$f":"$AB$7","v":0}]
[11,"Barsegian",null,null,{"$f":"$AA$4","v":0},null,{"$f":"$AB$4","v":0},null,"FF"]
[]
[]
[{"$f":"SUM(E18:E29)","v":128},"aantal partijen"]

{"sheet":"reeks6","index":5,"n_rows":31,"n_cols":24,"rows_kept":31,"cut":false,"hidden":false,"merged":[]}
[]
[null,"SPELERS",1,null,2,null,3,null,4,null,5,null,6,null,7,null,8,null,9,null,10,null,"part","ptn"]
[null,null,"W","Z","W","Z","W","Z","W","Z","W","Z","W","Z","W","Z","W","Z","W","Z","W","Z"]
[1,"Heyndrickx",null,null,1,3,3,3,3,1,2,3,3,3,1,1,1,3,1,2,3,3,{"$f":"COUNT(C4:V4)","v":18},{"$f":"SUM(C4:V4)","v":40}]
[2,"Ilegems",1,3,null,null,3,1,3,3,3,3,3,3,1,1,3,3,1,1,3,3,18,42]
[3,"Lens",1,1,3,1,null,null,1,1,1,1,3,1,1,3,1,1,1,1,2,1,18,25]
[4,"Leys",3,1,1,1,3,3,null,null,3,3,3,3,1,1,3,3,3,2,3,3,18,43]
[5,"Renders",1,2,1,1,3,3,1,1,null,null,3,3,1,1,3,3,1,1,1,3,18,33]
[6,"Roelants",1,1,1,1,3,1,1,1,1,1,null,null,1,1,1,1,1,1,1,1,18,20]
[7,"Ruts I.",3,3,3,3,1,3,3,3,3,3,3,3,null,null,3,3,1,1,3,3,18,48]
[8,"Ruts L.",1,3,1,1,3,3,1,1,1,1,3,3,1,1,null,null,1,3,1,1,18,30]
[9,"Van Tendeloo",2,3,3,3,3,3,2,1,3,3,3,3,3,3,1,3,null,null,1,2,18,45]
[10,"Vervaeke",1,1,1,1,3,2,1,1,1,3,3,3,1,1,3,3,2,3,null,null,18,34]
[]
[]
[]
[null,"REEKS 6",null,"aantal",null,null,"punten"]
[1,"Ruts I.",null,null,{"$f":"$W$10","v":18},null,{"$f":"$X$10","v":48}]
[2,"Van Tendeloo",null,null,{"$f":"$W$12","v":18},null,{"$f":"$X$12","v":45}]
[3,"Leys",null,null,{"$f":"$W$7","v":18},null,{"$f":"$X$7","v":43}]
[4,"Ilegems",null,null,{"$f":"$W$5","v":18},null,{"$f":"$X$5","v":42}]
[5,"Heyndrickx",null,null,{"$f":"$W$4","v":18},null,{"$f":"$X$4","v":40}]
[6,"Vervaeke",null,null,{"$f":"$W$13","v":18},null,{"$f":"$X$13","v":34}]
[7,"Renders",null,null,{"$f":"$W$8","v":18},null,{"$f":"$X$8","v":33}]
[8,"Ruts L.",null,null,{"$f":"$W$11","v":18},null,{"$f":"$X$11","v":30}]
[9,"Lens",null,null,{"$f":"$W$6","v":18},null,{"$f":"$X$6","v":25}]
[10,"Roelants",null,null,{"$f":"$W$9","v":18},null,{"$f":"$X$9","v":20}]
[]
[]
[]
[{"$f":"SUM(E18:E29)","v":180},"aantal partijen"]

{"sheet":"KREEKS1","index":6,"n_rows":91,"n_cols":12,"rows_kept":91,"cut":false,"hidden":false,"merged":[]}
[null,"KLUBKAMPIOENSCHAP 2015 / 2016",null,null,null,null,null,"REEKS 1"]
[null,"SCHAAKKRING DEURNE -ZUID"]
[]
[null,"RONDE 1",null,"4/11/2015.",null,null,null,"RONDE 12",null,"17/02/2016."]
[1,"Dardha D.",null,"bye","X","X",null,"bye",null,"Dardha D.","X","X"]
[2,"Talon",null,"Schuermans",3,1,null,"Schuermans",null,"Talon","X","X"]
[3,"Knors",null,"Michiels",3,1,null,"Michiels",null,"Knors",1,3]
[4,"Dardha B.",null,"Ismailaj",2,2,null,"Ismailaj",null,"Dardha B.",1,3]
[5,"Stryckers",null,"Robbé",1,3,null,"Robbé",null,"Stryckers",2,2]
[6,"Verachtert",null,"Meulenbergs",2,2,null,"Meulenbergs",null,"Verachtert",2,2]
[]
[null,"RONDE 2",null,"18/11/2015.",null,null,null,"RONDE 13",null,"2/03/2016."]
[1,"bye",null,"Meulenbergs","X","X",null,"Meulenbergs",null,"bye","X","X"]
[2,"Robbé",null,"Verachtert",3,1,null,"Verachtert",null,"Robbé",2,2]
[3,"Ismailaj",null,"Stryckers",2,2,null,"Stryckers",null,"Ismailaj",1,3]
[4,"Michiels",null,"Dardha B.",2,2,null,"Dardha B.",null,"Michiels",2,2]
[5,"Schuermans",null,"Knors",2,2,null,"Knors",null,"Schuermans",1,3]
[6,"Dardha D.",null,"Talon",2,2,null,"Talon",null,"Dardha D.","X","X"]
[]
[null,"RONDE 3",null,"25/11/2015.",null,null,null,"RONDE 14",null,"9/03/2016."]
[1,"Talon",null,"bye","X","X",null,"bye",null,"Talon","X","X"]
[2,"Knors",null,"Dardha D.",3,1,null,"Dardha D.",null,"Knors",3,1]
[3,"Dardha B.",null,"Schuermans",1,3,null,"Schuermans",null,"Dardha B.",3,1]
[4,"Stryckers",null,"Michiels",2,2,null,"Michiels",null,"Stryckers",2,2]
[5,"Verachtert",null,"Ismailaj",2,2,null,"Ismailaj",null,"Verachtert",2,2]
[6,"Meulenbergs",null,"Robbé",3,1,null,"Robbé",null,"Meulenbergs",1,3]
[]
[null,"RONDE 4",null,"9/12/2015.",null,null,null,"RONDE 15",null,"16/03/2016."]
[1,"bye",null,"Robbé","X","X",null,"Robbé",null,"bye","X","X"]
[2,"Ismailaj",null,"Meulenbergs",3,1,null,"Meulenbergs",null,"Ismailaj",2,2]
[3,"Michiels",null,"Verachtert",3,1,null,"Verachtert",null,"Michiels",2,2]
[4,"Schuermans",null,"Stryckers",3,1,null,"Stryckers",null,"Schuermans",1,3]
[5,"Dardha D.",null,"Dardha B.",3,1,null,"Dardha B.",null,"Dardha D.",1,3]
[6,"Talon",null,"Knors",1,3,null,"Knors",null,"Talon","X","X"]
[]
[null,"RONDE 5",null,"16/12/2015.",null,null,null,"RONDE 16",null,"30/03/2016."]
[1,"Knors",null,"bye","X","X",null,"bye",null,"Knors","X","X"]
[2,"Dardha B.",null,"Talon",2,2,null,"Talon",null,"Dardha B.","X","X"]
[3,"Stryckers",null,"Dardha D.",1,3,null,"Dardha D.",null,"Stryckers",3,1]
[4,"Verachtert",null,"Schuermans",1,3,null,"Schuermans",null,"Verachtert",3,1]
[5,"Meulenbergs",null,"Michiels",1,3,null,"Michiels",null,"Meulenbergs",3,1]
[6,"Robbé",null,"Ismailaj",1,3,null,"Ismailaj",null,"Robbé",3,1]
[]
[null,"RONDE 6",null,"23/12/2015.",null,null,null,"RONDE 17",null,"6/04/2016."]
[1,"bye",null,"Ismailaj","X","X",null,"Ismailaj",null,"bye","X","X"]
[2,"Michiels",null,"Robbé",3,1,null,"Robbé",null,"Michiels",3,1]
[3,"Schuermans",null,"Meulenbergs",3,1,null,"Meulenbergs",null,"Schuermans",1,3]
[4,"Dardha D.",null,"Verachtert",3,1,null,"Verachtert",null,"Dardha D.",1,3]
[5,"Talon",null,"Stryckers",3,1,null,"Stryckers",null,"Talon","X","X"]
[6,"Knors",null,"Dardha B.",2,2,null,"Dardha B.",null,"Knors",1,3]
[]
[]
[null,"RONDE 7",null,"6/01/2016.",null,null,null,"RONDE 18",null,"13/04/2016."]
[1,"Dardha B.",null,"bye","X","X",null,"bye",null,"Dardha B.","X","X"]
[2,"Stryckers",null,"Knors",1,3,null,"Knors",null,"Stryckers",3,1]
[3,"Verachtert",null,"Talon",1,3,null,"Talon",null,"Verachtert","X","X"]
[4,"Meulenbergs",null,"Dardha D.",1,3,null,"Dardha D.",null,"Meulenbergs",3,1]
[5,"Robbé",null,"Schuermans",1,3,null,"Schuermans",null,"Robbé",2,2]
[6,"Ismailaj",null,"Michiels",1,3,null,"Michiels",null,"Ismailaj",2,2]
[]
[null,"RONDE 8",null,"13/01/2016.",null,null,null,"RONDE 19",null,"27/04/2016."]
[1,"bye",null,"Michiels","X","X",null,"Michiels",null,"bye","X","X"]
[2,"Schuermans",null,"Ismailaj",3,1,null,"Ismailaj",null,"Schuermans",1,3]
[3,"Dardha D.",null,"Robbé",3,1,null,"Robbé",null,"Dardha D.",1,3]
[4,"Talon",null,"Meulenbergs",3,1,null,"Meulenbergs",null,"Talon","X","X"]
[5,"Knors",null,"Verachtert",1,3,null,"Verachtert",null,"Knors",1,3]
[6,"Dardha B.",null,"Stryckers",1,3,null,"Stryckers",null,"Dardha B.",2,2]
[]
[null,"RONDE 9",null,"20/01/2016.",null,null,null,"RONDE 20",null,"4/05/2016."]
[1,"Stryckers",null,"bye","X","X",null,"bye",null,"Stryckers","X","X"]
[2,"Verachtert",null,"Dardha B.",1,3,null,"Dardha B.",null,"Verachtert",2,2]
[3,"Meulenbergs",null,"Knors",1,3,null,"Knors",null,"Meulenbergs",3,1]
[4,"Robbé",null,"Talon",1,3,null,"Talon",null,"Robbé","X","X"]
[5,"Ismailaj",null,"Dardha D.",1,3,null,"Dardha D.",null,"Ismailaj",3,1]
[6,"Michiels",null,"Schuermans",2,2,null,"Schuermans",null,"Michiels",3,1]
[]
[null,"RONDE 10",null,"3/02/2016.",null,null,null,"RONDE 21",null,"11/05/2016."]
[1,"bye",null,"Schuermans","X","X",null,"Schuermans",null,"bye","X","X"]
[2,"Dardha D.",null,"Michiels",3,1,null,"Michiels",null,"Dardha D.",2,2]
[3,"Talon",null,"Ismailaj",2,2,null,"Ismailaj",null,"Talon","X","X"]
[4,"Knors",null,"Robbé",3,1,null,"Robbé",null,"Knors",1,3]
[5,"Dardha B.",null,"Meulenbergs",3,1,null,"Meulenbergs",null,"Dardha B.",1,3]
[6,"Stryckers",null,"Verachtert",3,1,null,"Verachtert",null,"Stryckers",3,1]
[]
[null,"RONDE 11",null,"10/02/2016.",null,null,null,"RONDE 22",null,"18/05/2016."]
[1,"Verachtert",null,"bye","X","X",null,"bye",null,"Verachtert","X","X"]
[2,"Meulenbergs",null,"Stryckers",2,2,null,"Stryckers",null,"Meulenbergs",2,2]
[3,"Robbé",null,"Dardha B.",2,2,null,"Dardha B.",null,"Robbé",3,1]
[4,"Ismailaj",null,"Knors",1,3,null,"Knors",null,"Ismailaj",3,1]
[5,"Michiels",null,"Talon",3,1,null,"Talon",null,"Michiels","X","X"]
[6,"Schuermans",null,"Dardha D.",1,3,null,"Dardha D.",null,"Schuermans",1,3]

{"sheet":"KREEKS2","index":7,"n_rows":91,"n_cols":12,"rows_kept":91,"cut":false,"hidden":false,"merged":[]}
[null,"KLUBKAMPIOENSCHAP 2015 / 2016",null,null,null,null,null,"REEKS 2"]
[null,"SCHAAKKRING DEURNE -ZUID"]
[]
[null,"RONDE 1",null,"4/11/2015.",null,null,null,"RONDE 12",null,"17/02/2016."]
[1,"Verbert",null,"Cop",3,1,null,"Cop",null,"Verbert",3,1]
[2,"De Cock S.",null,"Berghs",2,2,null,"Berghs",null,"De Cock S.",3,1]
[3,"Embrechts",null,"Crauwels",3,1,null,"Crauwels",null,"Embrechts",2,2]
[4,"Goddé M.",null,"Delvaux",2,2,null,"Delvaux",null,"Goddé M.",2,2]
[5,"Serruys",null,"Geylen",2,2,null,"Geylen",null,"Serruys",1,3]
[6,"Van Dingenen",null,"Roegiers",3,1,null,"Roegiers",null,"Van Dingenen",2,2]
[]
[null,"RONDE 2",null,"18/11/2015.",null,null,null,"RONDE 13",null,"2/03/2016."]
[1,"Cop",null,"Van Dingenen",2,2,null,"Van Dingenen",null,"Cop",2,2]
[2,"Roegiers",null,"Serruys",1,3,null,"Serruys",null,"Roegiers",3,1]
[3,"Geylen",null,"Goddé M.",1,3,null,"Goddé M.",null,"Geylen",3,1]
[4,"Delvaux",null,"Embrechts",3,1,null,"Embrechts",null,"Delvaux",1,3]
[5,"Crauwels",null,"De Cock S.",1,3,null,"De Cock S.",null,"Crauwels",3,1]
[6,"Berghs",null,"Verbert",3,1,null,"Verbert",null,"Berghs",1,3]
[]
[null,"RONDE 3",null,"25/11/2015.",null,null,null,"RONDE 14",null,"9/03/2016."]
[1,"Berghs",null,"Cop",3,1,null,"Cop",null,"Berghs",1,3]
[2,"Verbert",null,"Crauwels",1,3,null,"Crauwels",null,"Verbert",3,1]
[3,"De Cock S.",null,"Delvaux",2,2,null,"Delvaux",null,"De Cock S.",2,2]
[4,"Embrechts",null,"Geylen",3,1,null,"Geylen",null,"Embrechts",1,3]
[5,"Goddé M.",null,"Roegiers",3,1,null,"Roegiers",null,"Goddé M.",1,3]
[6,"Serruys",null,"Van Dingenen",2,2,null,"Van Dingenen",null,"Serruys",1,3]
[]
[null,"RONDE 4",null,"9/12/2015.",null,null,null,"RONDE 15",null,"16/03/2016."]
[1,"Cop",null,"Roegiers",3,1,null,"Roegiers",null,"Cop",1,3]
[2,"Geylen",null,"Van Dingenen",2,2,null,"Van Dingenen",null,"Geylen",3,1]
[3,"Delvaux",null,"Serruys",2,2,null,"Serruys",null,"Delvaux",2,2]
[4,"Crauwels",null,"Goddé M.",2,2,null,"Goddé M.",null,"Crauwels",3,1]
[5,"Berghs",null,"Embrechts",3,1,null,"Embrechts",null,"Berghs",2,2]
[6,"Verbert",null,"De Cock S.",2,2,null,"De Cock S.",null,"Verbert",3,1]
[]
[null,"RONDE 5",null,"16/12/2015.",null,null,null,"RONDE 16",null,"30/03/2016."]
[1,"De Cock S.",null,"Cop",2,2,null,"Cop",null,"De Cock S.",3,1]
[2,"Embrechts",null,"Verbert",1,3,null,"Verbert",null,"Embrechts",1,3]
[3,"Goddé M.",null,"Berghs",2,2,null,"Berghs",null,"Goddé M.",1,3]
[4,"Serruys",null,"Crauwels",3,1,null,"Crauwels",null,"Serruys",1,3]
[5,"Van Dingenen",null,"Delvaux",2,2,null,"Delvaux",null,"Van Dingenen",2,2]
[6,"Roegiers",null,"Geylen",2,2,null,"Geylen",null,"Roegiers",3,1]
[]
[null,"RONDE 6",null,"23/12/2015.",null,null,null,"RONDE 17",null,"6/04/2016."]
[1,"Cop",null,"Geylen",1,3,null,"Geylen",null,"Cop",2,2]
[2,"Delvaux",null,"Roegiers",2,2,null,"Roegiers",null,"Delvaux",3,1]
[3,"Crauwels",null,"Van Dingenen",2,2,null,"Van Dingenen",null,"Crauwels",1,3]
[4,"Berghs",null,"Serruys",1,3,null,"Serruys",null,"Berghs",3,1]
[5,"Verbert",null,"Goddé M.",1,3,null,"Goddé M.",null,"Verbert",3,1]
[6,"De Cock S.",null,"Embrechts",3,1,null,"Embrechts",null,"De Cock S.",2,2]
[]
[]
[null,"RONDE 7",null,"6/01/2016.",null,null,null,"RONDE 18",null,"13/04/2016."]
[1,"Embrechts",null,"Cop",1,3,null,"Cop",null,"Embrechts",2,2]
[2,"Goddé M.",null,"De Cock S.",3,1,null,"De Cock S.",null,"Goddé M.",2,2]
[3,"Serruys",null,"Verbert",3,1,null,"Verbert",null,"Serruys",3,1]
[4,"Van Dingenen",null,"Berghs",1,3,null,"Berghs",null,"Van Dingenen",1,3]
[5,"Roegiers",null,"Crauwels",2,2,null,"Crauwels",null,"Roegiers",2,2]
[6,"Geylen",null,"Delvaux",2,2,null,"Delvaux",null,"Geylen",3,1]
[]
[null,"RONDE 8",null,"13/01/2016.",null,null,null,"RONDE 19",null,"27/04/2016."]
[1,"Cop",null,"Delvaux",2,2,null,"Delvaux",null,"Cop",1,3]
[2,"Crauwels",null,"Geylen",3,1,null,"Geylen",null,"Crauwels",3,1]
[3,"Berghs",null,"Roegiers",3,1,null,"Roegiers",null,"Berghs",1,3]
[4,"Verbert",null,"Van Dingenen",3,1,null,"Van Dingenen",null,"Verbert",1,3]
[5,"De Cock S.",null,"Serruys",1,3,null,"Serruys",null,"De Cock S.",1,3]
[6,"Embrechts",null,"Goddé M.",1,3,null,"Goddé M.",null,"Embrechts",3,1]
[]
[null,"RONDE 9",null,"20/01/2016.",null,null,null,"RONDE 20",null,"4/05/2016."]
[1,"Goddé M.",null,"Cop",1,3,null,"Cop",null,"Goddé M.",1,3]
[2,"Serruys",null,"Embrechts",3,1,null,"Embrechts",null,"Serruys",2,2]
[3,"Van Dingenen",null,"De Cock S.",2,2,null,"De Cock S.",null,"Van Dingenen",2,2]
[4,"Roegiers",null,"Verbert",1,3,null,"Verbert",null,"Roegiers",1,3]
[5,"Geylen",null,"Berghs",3,1,null,"Berghs",null,"Geylen",2,2]
[6,"Delvaux",null,"Crauwels",3,1,null,"Crauwels",null,"Delvaux",1,3]
[]
[null,"RONDE 10",null,"3/02/2016.",null,null,null,"RONDE 21",null,"11/05/2016."]
[1,"Cop",null,"Crauwels",2,2,null,"Crauwels",null,"Cop",2,2]
[2,"Berghs",null,"Delvaux",1,3,null,"Delvaux",null,"Berghs",3,1]
[3,"Verbert",null,"Geylen",3,1,null,"Geylen",null,"Verbert",3,1]
[4,"De Cock S.",null,"Roegiers",3,1,null,"Roegiers",null,"De Cock S.",2,2]
[5,"Embrechts",null,"Van Dingenen",1,3,null,"Van Dingenen",null,"Embrechts",1,3]
[6,"Goddé M.",null,"Serruys",3,1,null,"Serruys",null,"Goddé M.",2,2]
[]
[null,"RONDE 11",null,"10/02/2016.",null,null,null,"RONDE 22",null,"18/05/2016."]
[1,"Serruys",null,"Cop",2,2,null,"Cop",null,"Serruys",2,2]
[2,"Van Dingenen",null,"Goddé M.",1,3,null,"Goddé M.",null,"Van Dingenen",3,1]
[3,"Roegiers",null,"Embrechts",1,3,null,"Embrechts",null,"Roegiers",2,2]
[4,"Geylen",null,"De Cock S.",3,1,null,"De Cock S.",null,"Geylen",1,3]
[5,"Delvaux",null,"Verbert",2,2,null,"Verbert",null,"Delvaux",3,1]
[6,"Crauwels",null,"Berghs",2,2,null,"Berghs",null,"Crauwels",1,3]

{"sheet":"KREEKS3 ","index":8,"n_rows":91,"n_cols":12,"rows_kept":91,"cut":false,"hidden":false,"merged":[]}
[null,"KLUBKAMPIOENSCHAP 2015 / 2016",null,null,null,null,null,"REEKS 3"]
[null,"SCHAAKKRING DEURNE -ZUID"]
[]
[null,"RONDE 1",null,"4/11/2015.",null,null,null,"RONDE 12",null,"17/02/2016."]
[1,"Roofthoofd",null,"Bruynseels",3,1,null,"Bruynseels",null,"Roofthoofd",3,1]
[2,"Van Laer",null,"Michielsen K.",3,1,null,"Michielsen K.",null,"Van Laer",3,1]
[3,"Vermaere",null,"Lemmens",3,1,null,"Lemmens",null,"Vermaere",2,2]
[4,"Van der Steen",null,"Geerts H.",2,2,null,"Geerts H.",null,"Van der Steen",3,1]
[5,"Renty",null,"Adriaense",3,1,null,"Adriaense",null,"Renty","X","X"]
[6,"Mathé",null,"Kuti",3,1,null,"Kuti",null,"Mathé",3,1]
[]
[null,"RONDE 2",null,"18/11/2015.",null,null,null,"RONDE 13",null,"2/03/2016."]
[1,"Bruynseels",null,"Vermaere",3,1,null,"Vermaere",null,"Bruynseels",3,1]
[2,"Van der Steen",null,"Van Laer",3,1,null,"Van Laer",null,"Van der Steen",3,1]
[3,"Renty",null,"Roofthoofd",2,2,null,"Roofthoofd",null,"Renty","X","X"]
[4,"Mathé",null,"Michielsen K.",1,3,null,"Michielsen K.",null,"Mathé",3,1]
[5,"Kuti",null,"Lemmens",3,1,null,"Lemmens",null,"Kuti",1,3]
[6,"Adriaense",null,"Geerts H.",2,2,null,"Geerts H.",null,"Adriaense",3,1]
[]
[null,"RONDE 3",null,"25/11/2015.",null,null,null,"RONDE 14",null,"9/03/2016."]
[1,"Geerts H.",null,"Bruynseels",3,1,null,"Bruynseels",null,"Geerts H.",3,1]
[2,"Lemmens",null,"Adriaense",2,2,null,"Adriaense",null,"Lemmens",3,1]
[3,"Michielsen K.",null,"Kuti",3,1,null,"Kuti",null,"Michielsen K.",1,3]
[4,"Roofthoofd",null,"Mathé",3,1,null,"Mathé",null,"Roofthoofd",1,3]
[5,"Van Laer",null,"Renty",3,1,null,"Renty",null,"Van Laer","X","X"]
[6,"Vermaere",null,"Van der Steen",2,2,null,"Van der Steen",null,"Vermaere",1,3]
[]
[null,"RONDE 4",null,"9/12/2015.",null,null,null,"RONDE 15",null,"16/03/2016."]
[1,"Bruynseels",null,"Van der Steen",1,3,null,"Van der Steen",null,"Bruynseels",1,3]
[2,"Renty",null,"Vermaere",1,3,null,"Vermaere",null,"Renty","X","X"]
[3,"Mathé",null,"Van Laer",1,3,null,"Van Laer",null,"Mathé",2,2]
[4,"Kuti",null,"Roofthoofd",3,1,null,"Roofthoofd",null,"Kuti",1,3]
[5,"Adriaense",null,"Michielsen K.",1,3,null,"Michielsen K.",null,"Adriaense",2,2]
[6,"Geerts H.",null,"Lemmens",2,2,null,"Lemmens",null,"Geerts H.",1,3]
[]
[null,"RONDE 5",null,"16/12/2015.",null,null,null,"RONDE 16",null,"30/03/2016."]
[1,"Lemmens",null,"Bruynseels",2,2,null,"Bruynseels",null,"Lemmens",2,2]
[2,"Michielsen K.",null,"Geerts H.",2,2,null,"Geerts H.",null,"Michielsen K.",1,3]
[3,"Roofthoofd",null,"Adriaense",2,2,null,"Adriaense",null,"Roofthoofd",3,1]
[4,"Van Laer",null,"Kuti",3,1,null,"Kuti",null,"Van Laer",3,1]
[5,"Vermaere",null,"Mathé",1,3,null,"Mathé",null,"Vermaere",2,2]
[6,"Van der Steen",null,"Renty",1,3,null,"Renty",null,"Van der Steen","X","X"]
[]
[null,"RONDE 6",null,"23/12/2015.",null,null,null,"RONDE 17",null,"6/04/2016."]
[1,"Bruynseels",null,"Renty",3,1,null,"Renty",null,"Bruynseels","X","X"]
[2,"Mathé",null,"Van der Steen",3,1,null,"Van der Steen",null,"Mathé",1,3]
[3,"Kuti",null,"Vermaere",1,3,null,"Vermaere",null,"Kuti",1,3]
[4,"Adriaense",null,"Van Laer",2,2,null,"Van Laer",null,"Adriaense",2,2]
[5,"Geerts H.",null,"Roofthoofd",2,2,null,"Roofthoofd",null,"Geerts H.",2,2]
[6,"Lemmens",null,"Michielsen K.",1,3,null,"Michielsen K.",null,"Lemmens",3,1]
[]
[]
[null,"RONDE 7",null,"6/01/2016.",null,null,null,"RONDE 18",null,"13/04/2016."]
[1,"Michielsen K.",null,"Bruynseels",3,1,null,"Bruynseels",null,"Michielsen K.",3,1]
[2,"Roofthoofd",null,"Lemmens",3,1,null,"Lemmens",null,"Roofthoofd",2,2]
[3,"Van Laer",null,"Geerts H.",3,1,null,"Geerts H.",null,"Van Laer",1,3]
[4,"Vermaere",null,"Adriaense",3,1,null,"Adriaense",null,"Vermaere",3,1]
[5,"Van der Steen",null,"Kuti",3,1,null,"Kuti",null,"Van der Steen",3,1]
[6,"Renty",null,"Mathé",2,2,null,"Mathé",null,"Renty","X","X"]
[]
[null,"RONDE 8",null,"13/01/2016.",null,null,null,"RONDE 19",null,"27/04/2016."]
[1,"Bruynseels",null,"Mathé",3,1,null,"Mathé",null,"Bruynseels",1,3]
[2,"Kuti",null,"Renty",1,3,null,"Renty",null,"Kuti","X","X"]
[3,"Adriaense",null,"Van der Steen",3,1,null,"Van der Steen",null,"Adriaense",2,2]
[4,"Geerts H.",null,"Vermaere",3,1,null,"Vermaere",null,"Geerts H.",1,3]
[5,"Lemmens",null,"Van Laer",1,3,null,"Van Laer",null,"Lemmens",3,1]
[6,"Michielsen K.",null,"Roofthoofd",3,1,null,"Roofthoofd",null,"Michielsen K.",1,3]
[]
[null,"RONDE 9",null,"20/01/2016.",null,null,null,"RONDE 20",null,"4/05/2016."]
[1,"Adriaense",null,"Bruynseels",1,3,null,"Bruynseels",null,"Adriaense",2,2]
[2,"Geerts H.",null,"Kuti",2,2,null,"Kuti",null,"Geerts H.",2,2]
[3,"Lemmens",null,"Mathé",1,3,null,"Mathé",null,"Lemmens",3,1]
[4,"Michielsen K.",null,"Renty",3,1,null,"Renty",null,"Michielsen K.","X","X"]
[5,"Roofthoofd",null,"Van der Steen",2,2,null,"Van der Steen",null,"Roofthoofd",2,2]
[6,"Van Laer",null,"Vermaere",3,1,null,"Vermaere",null,"Van Laer",1,3]
[]
[null,"RONDE 10",null,"3/02/2016.",null,null,null,"RONDE 21",null,"11/05/2016."]
[1,"Bruynseels",null,"Kuti",1,3,null,"Kuti",null,"Bruynseels",2,2]
[2,"Adriaense",null,"Mathé",1,3,null,"Mathé",null,"Adriaense",3,1]
[3,"Geerts H.",null,"Renty",3,1,null,"Renty",null,"Geerts H.","X","X"]
[4,"Lemmens",null,"Van der Steen",2,2,null,"Van der Steen",null,"Lemmens",3,1]
[5,"Michielsen K.",null,"Vermaere",3,1,null,"Vermaere",null,"Michielsen K.",1,3]
[6,"Roofthoofd",null,"Van Laer",3,1,null,"Van Laer",null,"Roofthoofd",2,2]
[]
[null,"RONDE 11",null,"10/02/2016.",null,null,null,"RONDE 22",null,"18/05/2016."]
[1,"Van Laer",null,"Bruynseels",1,3,null,"Bruynseels",null,"Van Laer",1,3]
[2,"Vermaere",null,"Roofthoofd",2,2,null,"Roofthoofd",null,"Vermaere",2,2]
[3,"Van der Steen",null,"Michielsen K.",2,2,null,"Michielsen K.",null,"Van der Steen",3,1]
[4,"Renty",null,"Lemmens",3,1,null,"Lemmens",null,"Renty","X","X"]
[5,"Mathé",null,"Geerts H.",1,3,null,"Geerts H.",null,"Mathé",1,3]
[6,"Kuti",null,"Adriaense",2,2,null,"Adriaense",null,"Kuti",3,1]

{"sheet":"KREEKS4","index":9,"n_rows":91,"n_cols":12,"rows_kept":91,"cut":false,"hidden":false,"merged":[]}
[null,"KLUBKAMPIOENSCHAP 2015 / 2016",null,null,null,null,null,"REEKS 4"]
[null,"SCHAAKKRING DEURNE -ZUID"]
[]
[null,"RONDE 1",null,"4/11/2015.",null,null,null,"RONDE 12",null,"17/02/2016."]
[1,"Backskai",null,"Goddé P.",3,1,null,"Goddé P.",null,"Backskai",3,1]
[2,"Hellemans",null,"Hofman",1,3,null,"Hofman",null,"Hellemans",3,1]
[3,"Keynen",null,"Mertens",3,1,null,"Mertens",null,"Keynen",3,1]
[4,"Neefs",null,"Rabbachin",3,1,null,"Rabbachin",null,"Neefs",3,1]
[5,"Schrevens",null,"Wouters",3,1,null,"Wouters",null,"Schrevens",1,3]
[6,"Michielsen L.",null,"bye","X","X",null,"bye",null,"Michielsen L.","X","X"]
[]
[null,"RONDE 2",null,"18/11/2015.",null,null,null,"RONDE 13",null,"2/03/2016."]
[1,"Goddé P.",null,"bye","X","X",null,"bye",null,"Goddé P.","X","X"]
[2,"Wouters",null,"Michielsen L.",2,2,null,"Michielsen L.",null,"Wouters",2,2]
[3,"Rabbachin",null,"Schrevens",1,3,null,"Schrevens",null,"Rabbachin",2,2]
[4,"Mertens",null,"Neefs",1,3,null,"Neefs",null,"Mertens",3,1]
[5,"Hofman",null,"Keynen",2,2,null,"Keynen",null,"Hofman",3,1]
[6,"Backskai",null,"Hellemans",1,3,null,"Hellemans",null,"Backskai",3,1]
[]
[null,"RONDE 3",null,"25/11/2015.",null,null,null,"RONDE 14",null,"9/03/2016."]
[1,"Hellemans",null,"Goddé P.",2,2,null,"Goddé P.",null,"Hellemans",3,1]
[2,"Keynen",null,"Backskai",1,3,null,"Backskai",null,"Keynen",1,3]
[3,"Neefs",null,"Hofman",3,1,null,"Hofman",null,"Neefs",2,2]
[4,"Schrevens",null,"Mertens",2,2,null,"Mertens",null,"Schrevens",1,3]
[5,"Michielsen L.",null,"Rabbachin",2,2,null,"Rabbachin",null,"Michielsen L.",3,1]
[6,"bye",null,"Wouters","X","X",null,"Wouters",null,"bye","X","X"]
[]
[null,"RONDE 4",null,"9/12/2015.",null,null,null,"RONDE 15",null,"16/03/2016."]
[1,"Goddé P.",null,"Wouters",2,2,null,"Wouters",null,"Goddé P.",2,2]
[2,"Rabbachin",null,"bye","X","X",null,"bye",null,"Rabbachin","X","X"]
[3,"Mertens",null,"Michielsen L.",2,2,null,"Michielsen L.",null,"Mertens",3,1]
[4,"Hofman",null,"Schrevens",1,3,null,"Schrevens",null,"Hofman",3,1]
[5,"Backskai",null,"Neefs",3,1,null,"Neefs",null,"Backskai",1,3]
[6,"Hellemans",null,"Keynen",3,1,null,"Keynen",null,"Hellemans",3,1]
[]
[null,"RONDE 5",null,"16/12/2015.",null,null,null,"RONDE 16",null,"30/03/2016."]
[1,"Keynen",null,"Goddé P.",1,3,null,"Goddé P.",null,"Keynen",1,3]
[2,"Neefs",null,"Hellemans",3,1,null,"Hellemans",null,"Neefs",2,2]
[3,"Schrevens",null,"Backskai",3,1,null,"Backskai",null,"Schrevens",1,3]
[4,"Michielsen L.",null,"Hofman",3,1,null,"Hofman",null,"Michielsen L.",2,2]
[5,"bye",null,"Mertens","X","X",null,"Mertens",null,"bye","X","X"]
[6,"Wouters",null,"Rabbachin",3,1,null,"Rabbachin",null,"Wouters",1,3]
[]
[null,"RONDE 6",null,"23/12/2015.",null,null,null,"RONDE 17",null,"6/04/2016."]
[1,"Goddé P.",null,"Rabbachin",1,3,null,"Rabbachin",null,"Goddé P.",1,3]
[2,"Mertens",null,"Wouters",1,3,null,"Wouters",null,"Mertens",3,1]
[3,"Hofman",null,"bye","X","X",null,"bye",null,"Hofman","X","X"]
[4,"Backskai",null,"Michielsen L.",3,1,null,"Michielsen L.",null,"Backskai",2,2]
[5,"Hellemans",null,"Schrevens",1,3,null,"Schrevens",null,"Hellemans",3,1]
[6,"Keynen",null,"Neefs",3,1,null,"Neefs",null,"Keynen",3,1]
[]
[]
[null,"RONDE 7",null,"6/01/2016.",null,null,null,"RONDE 18",null,"13/04/2016."]
[1,"Neefs",null,"Goddé P.",2,2,null,"Goddé P.",null,"Neefs",2,2]
[2,"Schrevens",null,"Keynen",3,1,null,"Keynen",null,"Schrevens",1,3]
[3,"Michielsen L.",null,"Hellemans",2,2,null,"Hellemans",null,"Michielsen L.",2,2]
[4,"bye",null,"Backskai","X","X",null,"Backskai",null,"bye","X","X"]
[5,"Wouters",null,"Hofman",3,1,null,"Hofman",null,"Wouters",2,2]
[6,"Rabbachin",null,"Mertens",1,3,null,"Mertens",null,"Rabbachin",1,3]
[]
[null,"RONDE 8",null,"13/01/2016.",null,null,null,"RONDE 19",null,"27/04/2016."]
[1,"Goddé P.",null,"Mertens",2,2,null,"Mertens",null,"Goddé P.",3,1]
[2,"Hofman",null,"Rabbachin",3,1,null,"Rabbachin",null,"Hofman",1,3]
[3,"Backskai",null,"Wouters",2,2,null,"Wouters",null,"Backskai",3,1]
[4,"Hellemans",null,"bye","X","X",null,"bye",null,"Hellemans","X","X"]
[5,"Keynen",null,"Michielsen L.",1,3,null,"Michielsen L.",null,"Keynen",1,3]
[6,"Neefs",null,"Schrevens",1,3,null,"Schrevens",null,"Neefs",1,3]
[]
[null,"RONDE 9",null,"20/01/2016.",null,null,null,"RONDE 20",null,"4/05/2016."]
[1,"Schrevens",null,"Goddé P.",1,3,null,"Goddé P.",null,"Schrevens",2,2]
[2,"Michielsen L.",null,"Neefs",2,2,null,"Neefs",null,"Michielsen L.",1,3]
[3,"bye",null,"Keynen","X","X",null,"Keynen",null,"bye","X","X"]
[4,"Wouters",null,"Hellemans",3,1,null,"Hellemans",null,"Wouters",1,3]
[5,"Rabbachin",null,"Backskai",2,2,null,"Backskai",null,"Rabbachin",3,1]
[6,"Mertens",null,"Hofman",1,3,null,"Hofman",null,"Mertens",1,3]
[]
[null,"RONDE 10",null,"3/02/2016.",null,null,null,"RONDE 21",null,"11/05/2016."]
[1,"Goddé P.",null,"Hofman",2,2,null,"Hofman",null,"Goddé P.",3,1]
[2,"Backskai",null,"Mertens",1,3,null,"Mertens",null,"Backskai",1,3]
[3,"Hellemans",null,"Rabbachin",2,2,null,"Rabbachin",null,"Hellemans",3,1]
[4,"Keynen",null,"Wouters",3,1,null,"Wouters",null,"Keynen",3,1]
[5,"Neefs",null,"bye","X","X",null,"bye",null,"Neefs","X","X"]
[6,"Schrevens",null,"Michielsen L.",3,1,null,"Michielsen L.",null,"Schrevens",2,2]
[]
[null,"RONDE 11",null,"10/02/2016.",null,null,null,"RONDE 22",null,"18/05/2016."]
[1,"Michielsen L.",null,"Goddé P.",3,1,null,"Goddé P.",null,"Michielsen L.",2,2]
[2,"bye",null,"Schrevens","X","X",null,"Schrevens",null,"bye","X","X"]
[3,"Wouters",null,"Neefs",3,1,null,"Neefs",null,"Wouters",2,2]
[4,"Rabbachin",null,"Keynen",1,3,null,"Keynen",null,"Rabbachin",3,1]
[5,"Mertens",null,"Hellemans",1,3,null,"Hellemans",null,"Mertens",3,1]
[6,"Hofman",null,"Backskai",1,3,null,"Backskai",null,"Hofman",3,1]

{"sheet":"KREEKS5 ","index":10,"n_rows":94,"n_cols":12,"rows_kept":94,"cut":false,"hidden":false,"merged":[]}
[null,"KLUBKAMPIOENSCHAP 2015 / 2016",null,null,null,null,null,"REEKS 5"]
[null,"SCHAAKKRING DEURNE -ZUID"]
[null,"RONDE 1",null,"4/11/2015.",null,null,null,"RONDE 12",null,"17/02/2016."]
[1,"Lemeire",null,"De Jonghe","X","X",null,"De Jonghe",null,"Lemeire","X","X"]
[2,"Meeus",null,"Pynaerts",3,1,null,"Pynaerts",null,"Meeus",3,1]
[3,"Meulemeester",null,"Brants",2,2,null,"Brants",null,"Meulemeester",3,1]
[4,"Daponte",null,"Van Dyck",1,3,null,"Van Dyck",null,"Daponte",3,1]
[5,"Vingerhoets",null,"Douwen",1,3,null,"Douwen",null,"Vingerhoets","X","X"]
[6,"Barsegian",null,"bye","X","X",null,"bye",null,"Barsegian","X","X"]
[]
[null,"RONDE 2",null,"18/11/2015.",null,null,null,"RONDE 13",null,"2/03/2016."]
[1,"De Jonghe",null,"bye","X","X",null,"bye",null,"De Jonghe","X","X"]
[2,"Douwen",null,"Barsegian","X","X",null,"Barsegian",null,"Douwen","X","X"]
[3,"Van Dyck",null,"Vingerhoets",2,2,null,"Vingerhoets",null,"Van Dyck",3,1]
[4,"Brants",null,"Daponte",1,3,null,"Daponte",null,"Brants",2,2]
[5,"Pynaerts",null,"Meulemeester",1,3,null,"Meulemeester",null,"Pynaerts",1,3]
[6,"Lemeire",null,"Meeus",1,3,null,"Meeus",null,"Lemeire",3,1]
[]
[null,"RONDE 3",null,"25/11/2015.",null,null,null,"RONDE 14",null,"9/03/2016."]
[1,"Meeus",null,"De Jonghe","X","X",null,"De Jonghe",null,"Meeus","X","X"]
[2,"Meulemeester",null,"Lemeire",3,1,null,"Lemeire",null,"Meulemeester",3,1]
[3,"Daponte",null,"Pynaerts",3,1,null,"Pynaerts",null,"Daponte",3,1]
[4,"Vingerhoets",null,"Brants",1,3,null,"Brants",null,"Vingerhoets",1,3]
[5,"Barsegian",null,"Van Dyck","X","X",null,"Van Dyck",null,"Barsegian","X","X"]
[6,"bye",null,"Douwen","X","X",null,"Douwen",null,"bye","X","X"]
[]
[null,"RONDE 4",null,"9/12/2015.",null,null,null,"RONDE 15",null,"16/03/2016."]
[1,"De Jonghe",null,"Douwen","X","X",null,"Douwen",null,"De Jonghe","X","X"]
[2,"Van Dyck",null,"bye","X","X",null,"bye",null,"Van Dyck","X","X"]
[3,"Brants",null,"Barsegian","X","X",null,"Barsegian",null,"Brants","X","X"]
[4,"Pynaerts",null,"Vingerhoets",2,2,null,"Vingerhoets",null,"Pynaerts",2,2]
[5,"Lemeire",null,"Daponte",1,3,null,"Daponte",null,"Lemeire",1,3]
[6,"Meeus",null,"Meulemeester",3,1,null,"Meulemeester",null,"Meeus",3,1]
[]
[null,"RONDE 5",null,"16/12/2015.",null,null,null,"RONDE 16",null,"30/03/2016."]
[1,"Meulemeester",null,"De Jonghe","X","X",null,"De Jonghe",null,"Meulemeester","X","X"]
[2,"Daponte",null,"Meeus",2,2,null,"Meeus",null,"Daponte",2,2]
[3,"Vingerhoets",null,"Lemeire",1,3,null,"Lemeire",null,"Vingerhoets",2,2]
[4,"Barsegian",null,"Pynaerts","X","X",null,"Pynaerts",null,"Barsegian","X","X"]
[5,"bye",null,"Brants","X","X",null,"Brants",null,"bye","X","X"]
[6,"Douwen",null,"Van Dyck",1,3,null,"Van Dyck",null,"Douwen","X","X"]
[]
[]
[]
[]
[]
[]
[null,"RONDE 6",null,"23/12/2015.",null,null,null,"RONDE 17",null,"6/04/2016."]
[1,"De Jonghe",null,"Van Dyck","X","X",null,"Van Dyck",null,"De Jonghe","X","X"]
[2,"Brants",null,"Douwen",1,3,null,"Douwen",null,"Brants","X","X"]
[3,"Pynaerts",null,"bye","X","X",null,"bye",null,"Pynaerts","X","X"]
[4,"Lemeire",null,"Barsegian","X","X",null,"Barsegian",null,"Lemeire","X","X"]
[5,"Meeus",null,"Vingerhoets",3,1,null,"Vingerhoets",null,"Meeus",2,2]
[6,"Meulemeester",null,"Daponte",1,3,null,"Daponte",null,"Meulemeester",1,3]
[]
[null,"RONDE 7",null,"6/01/2016.",null,null,null,"RONDE 18",null,"13/04/2016."]
[1,"Daponte",null,"De Jonghe","X","X",null,"De Jonghe",null,"Daponte","X","X"]
[2,"Vingerhoets",null,"Meulemeester",1,3,null,"Meulemeester",null,"Vingerhoets",1,3]
[3,"Barsegian",null,"Meeus","X","X",null,"Meeus",null,"Barsegian","X","X"]
[4,"bye",null,"Lemeire","X","X",null,"Lemeire",null,"bye","X","X"]
[5,"Douwen",null,"Pynaerts",1,3,null,"Pynaerts",null,"Douwen","X","X"]
[6,"Van Dyck",null,"Brants",1,3,null,"Brants",null,"Van Dyck",1,3]
[]
[null,"RONDE 8",null,"13/01/2016.",null,null,null,"RONDE 19",null,"27/04/2016."]
[1,"De Jonghe",null,"Brants","X","X",null,"Brants",null,"De Jonghe","X","X"]
[2,"Pynaerts",null,"Van Dyck",1,3,null,"Van Dyck",null,"Pynaerts",1,3]
[3,"Lemeire",null,"Douwen",3,1,null,"Douwen",null,"Lemeire","X","X"]
[4,"Meeus",null,"bye","X","X",null,"bye",null,"Meeus","X","X"]
[5,"Meulemeester",null,"Barsegian","X","X",null,"Barsegian",null,"Meulemeester","X","X"]
[6,"Daponte",null,"Vingerhoets",2,2,null,"Vingerhoets",null,"Daponte",1,3]
[]
[null,"RONDE 9",null,"20/01/2016.",null,null,null,"RONDE 20",null,"4/05/2016."]
[1,"Vingerhoets",null,"De Jonghe","X","X",null,"De Jonghe",null,"Vingerhoets","X","X"]
[2,"Barsegian",null,"Daponte","X","X",null,"Daponte",null,"Barsegian","X","X"]
[3,"bye",null,"Meulemeester","X","X",null,"Meulemeester",null,"bye","X","X"]
[4,"Douwen",null,"Meeus",2,2,null,"Meeus",null,"Douwen","X","X"]
[5,"Van Dyck",null,"Lemeire",1,3,null,"Lemeire",null,"Van Dyck",3,1]
[6,"Brants",null,"Pynaerts",3,1,null,"Pynaerts",null,"Brants",3,1]
[]
[null,"RONDE 10",null,"3/02/2016.",null,null,null,"RONDE 21",null,"11/05/2016."]
[1,"De Jonghe",null,"Pynaerts","X","X",null,"Pynaerts",null,"De Jonghe","X","X"]
[2,"Lemeire",null,"Brants",1,3,null,"Brants",null,"Lemeire",2,2]
[3,"Meeus",null,"Van Dyck",3,1,null,"Van Dyck",null,"Meeus",1,3]
[4,"Meulemeester",null,"Douwen",1,3,null,"Douwen",null,"Meulemeester","X","X"]
[5,"Daponte",null,"bye","X","X",null,"bye",null,"Daponte","X","X"]
[6,"Vingerhoets",null,"Barsegian","X","X",null,"Barsegian",null,"Vingerhoets","X","X"]
[]
[null,"RONDE 11",null,"10/02/2016.",null,null,null,"RONDE 22",null,"18/05/2016."]
[1,"Barsegian",null,"De Jonghe","X","X",null,"De Jonghe",null,"Barsegian","X","X"]
[2,"bye",null,"Vingerhoets","X","X",null,"Vingerhoets",null,"bye","X","X"]
[3,"Douwen",null,"Daponte",1,3,null,"Daponte",null,"Douwen","X","X"]
[4,"Van Dyck",null,"Meulemeester",3,1,null,"Meulemeester",null,"Van Dyck",1,3]
[5,"Brants",null,"Meeus",1,3,null,"Meeus",null,"Brants",2,2]
[6,"Pynaerts",null,"Lemeire",3,1,null,"Lemeire",null,"Pynaerts",3,1]

{"sheet":"KREEKS6","index":11,"n_rows":67,"n_cols":12,"rows_kept":67,"cut":false,"hidden":false,"merged":[]}
[null,"KLUBKAMPIOENSCHAP 2015 / 2016",null,null,null,null,null,"REEKS 6"]
[null,"SCHAAKKRING DEURNE -ZUID"]
[null,"RONDE 1",null,"4/11/2015.",null,null,null,"RONDE 10",null,"03/02/2016."]
[1,"Heyndrickx",null,"Lens",3,1,null,"Lens",null,"Heyndrickx",1,3]
[2,"Leys",null,"Renders",3,1,null,"Renders",null,"Leys",1,3]
[3,"Van Tendeloo",null,"Ilegems",3,1,null,"Ilegems",null,"Van Tendeloo",1,3]
[4,"Ruts L",null,"Ruts Ivo",1,3,null,"Ruts Ivo",null,"Ruts L",3,1]
[5,"Vervaeke",null,"Roelants",3,1,null,"Roelants",null,"Vervaeke",1,3]
[]
[null,"RONDE 2",null,"18/11/2015.",null,null,null,"RONDE 11",null,"10/02/2016."]
[1,"Lens",null,"Roelants",3,1,null,"Roelants",null,"Lens",3,1]
[2,"Ruts Ivo",null,"Vervaeke",3,1,null,"Vervaeke",null,"Ruts Ivo",1,3]
[3,"Ilegems",null,"Ruts L",3,1,null,"Ruts L",null,"Ilegems",1,3]
[4,"Renders",null,"Van Tendeloo",1,3,null,"Van Tendeloo",null,"Renders",3,1]
[5,"Heyndrickx",null,"Leys",3,1,null,"Leys",null,"Heyndrickx",3,1]
[]
[null,"RONDE 3",null,"25/11/2015.",null,null,null,"RONDE 12",null,"17/02/2016."]
[1,"Leys",null,"Lens",3,1,null,"Lens",null,"Leys",1,3]
[2,"Van Tendeloo",null,"Heyndrickx",2,2,null,"Heyndrickx",null,"Van Tendeloo",1,3]
[3,"Ruts L",null,"Renders",1,3,null,"Renders",null,"Ruts L",3,1]
[4,"Vervaeke",null,"Ilegems",1,3,null,"Ilegems",null,"Vervaeke",3,1]
[5,"Roelants",null,"Ruts Ivo",1,3,null,"Ruts Ivo",null,"Roelants",3,1]
[]
[null,"RONDE 4",null,"9/12/2015.",null,null,null,"RONDE 13",null,"02/03/2016."]
[1,"Lens",null,"Ruts Ivo",1,3,null,"Ruts Ivo",null,"Lens",1,3]
[2,"Ilegems",null,"Roelants",3,1,null,"Roelants",null,"Ilegems",1,3]
[3,"Renders",null,"Vervaeke",1,3,null,"Vervaeke",null,"Renders",1,3]
[4,"Heyndrickx",null,"Ruts L",1,3,null,"Ruts L",null,"Heyndrickx",1,3]
[5,"Leys",null,"Van Tendeloo",3,1,null,"Van Tendeloo",null,"Leys",2,2]
[]
[null,"RONDE 5",null,"16/12/2015.",null,null,null,"RONDE 14",null,"09/03/2016."]
[1,"Van Tendeloo",null,"Lens",3,1,null,"Lens",null,"Van Tendeloo",1,3]
[2,"Ruts L",null,"Leys",1,3,null,"Leys",null,"Ruts L",3,1]
[3,"Vervaeke",null,"Heyndrickx",1,3,null,"Heyndrickx",null,"Vervaeke",3,1]
[4,"Roelants",null,"Renders",1,3,null,"Renders",null,"Roelants",3,1]
[5,"Ruts Ivo",null,"Ilegems",3,1,null,"Ilegems",null,"Ruts Ivo",1,3]
[]
[null,"RONDE 6",null,"23/12/2015.",null,null,null,"RONDE 15",null,"16/03/2016."]
[1,"Lens",null,"Ilegems",3,1,null,"Ilegems",null,"Lens",3,1]
[2,"Renders",null,"Ruts Ivo",1,3,null,"Ruts Ivo",null,"Renders",3,1]
[3,"Heyndrickx",null,"Roelants",3,1,null,"Roelants",null,"Heyndrickx",1,3]
[4,"Leys",null,"Vervaeke",3,1,null,"Vervaeke",null,"Leys",1,3]
[5,"Van Tendeloo",null,"Ruts L",1,3,null,"Ruts L",null,"Van Tendeloo",1,3]
[]
[]
[]
[]
[null,"RONDE 7",null,"6/01/2016.",null,null,null,"RONDE 16",null,"30/03/2016."]
[1,"Ruts L",null,"Lens",3,1,null,"Lens",null,"Ruts L",1,3]
[2,"Vervaeke",null,"Van Tendeloo",2,2,null,"Van Tendeloo",null,"Vervaeke",1,3]
[3,"Roelants",null,"Leys",1,3,null,"Leys",null,"Roelants",3,1]
[4,"Ruts Ivo",null,"Heyndrickx",3,1,null,"Heyndrickx",null,"Ruts Ivo",1,3]
[5,"Ilegems",null,"Renders",3,1,null,"Renders",null,"Ilegems",1,3]
[]
[null,"RONDE 8",null,"13/01/2016.",null,null,null,"RONDE 17",null,"06/04/2016."]
[1,"Lens",null,"Renders",1,3,null,"Renders",null,"Lens",3,1]
[2,"Heyndrickx",null,"Ilegems",1,3,null,"Ilegems",null,"Heyndrickx",1,3]
[3,"Leys",null,"Ruts Ivo",1,3,null,"Ruts Ivo",null,"Leys",3,1]
[4,"Van Tendeloo",null,"Roelants",3,1,null,"Roelants",null,"Van Tendeloo",1,3]
[5,"Ruts L",null,"Vervaeke",1,3,null,"Vervaeke",null,"Ruts L",3,1]
[]
[null,"RONDE 9",null,"20/01/2016.",null,null,null,"RONDE 18",null,"13/04/2016."]
[1,"Vervaeke",null,"Lens",3,1,null,"Lens",null,"Vervaeke",2,2]
[2,"Roelants",null,"Ruts L",1,3,null,"Ruts L",null,"Roelants",3,1]
[3,"Ruts Ivo",null,"Van Tendeloo",1,3,null,"Van Tendeloo",null,"Ruts Ivo",3,1]
[4,"Ilegems",null,"Leys",3,1,null,"Leys",null,"Ilegems",1,3]
[5,"Renders",null,"Heyndrickx",1,3,null,"Heyndrickx",null,"Renders",2,2]

{"sheet":"modaliteiten","index":12,"n_rows":25,"n_cols":8,"rows_kept":25,"cut":false,"hidden":false,"merged":[]}
[null,"CK 2015-16"]
[]
[null,"REEKS 1","REEKS 2","REEKS 3","REEKS 4","REEKS 5","REEKS 6","Totaal"]
[1,"Schuermans","Delvaux","Mathé","Backskai","Lemeire","Heyndrickx"]
[2,"Talon","Berghs","Roofthoofd","Neefs","De Jonghe","Lens"]
[3,"Knors","Geylen","Kuti","Keynen","Meeus","Leys"]
[4,"Michiels","Serruys","Geerts H","Hofman","Pynaerts","Renders"]
[5,"Dardha B","Embrechts","Van der Steen","Wouters","Meulemeester","Vantendeloo"]
[6,"Ismailaj","Crauwels","Van Laer","Mertens","Brants","Ilegems"]
[7,"Stryckers","Verbert","Lemmens","Goddé P","Daponte","Ruts L"]
[8,"Robbé","Cop","Bruynseels","Hellemans","Van Dyck","Ruts I"]
[9,"Verachtert","Goddé M","Vermaere","Schrevens","Vingerhoets","Vervaeke"]
[10,"Dardha D.","De Cock S.","Adriaense","Rabbachin","Douwen ","Roelants"]
[11,"Meulenbergs","Roegiers","Renty","Michielsen L.","Barsegian"]
[12,null,"Van Dingenen","Michielsen K."]
[null,11,12,12,11,11,10,{"$f":"SUM(B16:G16)","v":67}]
[]
[null,"CK 2016-17"]
[null,"REEKS 1","REEKS 2","REEKS 3","REEKS 4","REEKS 5","REEKS 6","Totaal"]
[null,null,"2 stijgers(-)","2 stijgers(-)","2 stijgers(-)","2 stijgers(-)","2 stijgers(-)"]
[null,"2 dalers(-)","3 dalers(-)","4 dalers(-)","4 dalers(-)","4 dalers(-)"]
[null,null,"2 dalers uit 1 (+)","3 dalers uit 2(+)"," 4 dalers uit 3(+)","4 dalers uit 4(+)","4 dalers uit 5(+)"]
[null,"2 stijgers uit 2(+)","2 stijgers uit 3(+)","2 stijgers uit 4(+)","2 stijgers uit 5(+)","2 stijgers uit 6(+)"]
[]
[null,11,11,11,11,11,12,{"$f":"SUM(B25:G25)","v":67}]